bitfinex-derivatives/quotes_BTCF0:USTF0_20251111
["timestamp","ask_amount","ask_price","bid_price","bid_amount"]
[1762874171343,0.02729125,104090.0,104080.0,0.1554044]
[1762874171537,0.40689125,104090.0,104080.0,0.1554044]
[1762874171737,0.02509322,104090.0,104080.0,0.3956044]
[1762874171940,0.00014384,104100.0,104090.0,0.1383352]
[1762874172341,0.14737444,104130.0,104120.0,0.1522975]
[1762874172549,0.52917247,104130.0,104120.0,0.05624]
[1762874172742,0.52917247,104130.0,104120.0,0.1522975]
[1762874172938,0.33583469,104130.0,104120.0,0.1522975]
[1762874173247,0.66411185,104130.0,104120.0,0.05624]
[1762874173443,0.66407185,104130.0,104120.0,0.05624]
[1762874173945,0.66407185,104130.0,104120.0,0.01399]
[1762874174150,0.38175803,104130.0,104120.0,0.05624]
[1762874174341,0.66407185,104130.0,104120.0,0.05724]
[1762874174541,0.28451185,104130.0,104120.0,0.05724]
[1762874174743,0.38175803,104130.0,104120.0,0.05724]
[1762874174938,0.66407185,104130.0,104120.0,0.05724]
[1762874175843,0.28451185,104130.0,104120.0,0.1532975]
[1762874176042,0.28451185,104130.0,104120.0,0.05724]
[1762874176242,0.00219803,104130.0,104120.0,0.1532975]
[1762874177245,0.00014384,104140.0,104130.0,0.1382983]
[1762874177446,3.84e-06,104140.0,104130.0,0.3783783]
[1762874177651,0.00023043,104150.0,104140.0,0.1522791]
[1762874177847,0.00023043,104150.0,104140.0,0.3923591]
[1762874178151,0.00023043,104150.0,104140.0,0.3923191]
[1762874178849,4.3e-07,104150.0,104140.0,0.3923191]
[1762874179652,0.00014384,104160.0,104150.0,0.1401399]
[1762874180152,0.00014384,104160.0,104150.0,0.3801799]
[1762874180657,0.00014384,104160.0,104150.0,0.1401399]
[1762874181345,0.00014384,104160.0,104150.0,0.3801799]
[1762874181546,0.00014384,104160.0,104150.0,0.1401399]
[1762874181754,0.00014384,104160.0,104150.0,0.1421399]
[1762874181953,0.00014384,104160.0,104150.0,0.3821799]
[1762874182248,0.00023034,104190.0,104180.0,0.1404422]
[1762874182462,0.00023034,104190.0,104180.0,0.1536822]
[1762874183345,0.28231382,104200.0,104190.0,0.140433]
[1762874183346,9.588e-05,104200.0,104190.0,0.140433]
[1762874183547,0.02127025,104230.0,104220.0,0.05768]
[1762874183750,0.3057821,104230.0,104220.0,0.01324]
[1762874183946,0.87309932,104230.0,104200.0,0.01324]
[1762874184146,0.1907855,104230.0,104200.0,0.01324]
[1762874184343,0.28231382,104210.0,104200.0,0.05768]
[1762874184653,0.61001501,104210.0,104200.0,0.05768]
[1762874185855,0.61001501,104210.0,104200.0,0.01324]
[1762874186348,0.75486189,104210.0,104200.0,0.01324]
[1762874186958,0.75586189,104210.0,104200.0,0.01324]
[1762874188050,0.75586189,104210.0,104190.0,0.00014384]
[1762874188247,0.28231382,104200.0,104190.0,0.00014384]
[1762874188446,0.00219803,104200.0,104190.0,0.04458384]
[1762874188654,0.28451185,104200.0,104190.0,0.04458384]
[1762874189856,0.001,104210.0,104200.0,0.05768]
[1762874190159,0.001,104210.0,104200.0,0.1536638]
[1762874190562,0.28254407,104230.0,104220.0,0.05768]
[1762874190861,0.42941078,104230.0,104220.0,0.05768]
[1762874191362,0.52625696,104230.0,104220.0,0.05768]
[1762874191551,0.6639021,104230.0,104220.0,0.05768]
[1762874191751,0.2847421,104230.0,104220.0,0.05768]
[1762874192051,0.5835021,104230.0,104220.0,0.05768]
[1762874192563,0.6638621,104230.0,104220.0,0.05768]
[1762874193758,0.6638621,104230.0,104220.0,0.05868]
[1762874193960,0.2847421,104230.0,104220.0,0.05868]
[1762874194158,0.5627021,104230.0,104220.0,0.05868]
[1762874194365,0.2847421,104230.0,104220.0,0.05868]
[1762874194961,0.5627021,104230.0,104220.0,0.05868]
[1762874195160,0.2847421,104230.0,104220.0,0.1546454]
[1762874195558,0.00023025,104230.0,104220.0,0.1546454]
[1762874195856,0.42005493,104280.0,104240.0,0.01324]
[1762874195857,0.47137777,104280.0,104240.0,0.01324]
[1762874196062,0.47137777,104280.0,104260.0,0.01324]
[1762874196063,0.38123803,104270.0,104260.0,0.01324]
[1762874196264,0.66355185,104270.0,104260.0,0.01324]
[1762874196464,0.42930112,104270.0,104260.0,0.05768]
[1762874196964,0.66351185,104270.0,104260.0,0.05768]
[1762874197162,0.00219803,104270.0,104260.0,0.1536086]
[1762874197365,0.00219803,104270.0,104260.0,0.05768]
[1762874197667,0.28451185,104270.0,104260.0,0.05768]
[1762874197869,0.28451185,104270.0,104260.0,0.01324]
[1762874198370,0.28451185,104270.0,104260.0,0.01524]
[1762874198561,0.28451185,104270.0,104260.0,0.01624]
[1762874199270,0.00219803,104270.0,104260.0,0.06068]
[1762874199957,0.28231382,104280.0,104270.0,0.04444]
[1762874200164,0.28231382,104290.0,104270.0,0.1403594]
[1762874200355,0.30723803,104290.0,104280.0,0.05768]
[1762874200556,0.28451185,104290.0,104280.0,0.05768]
[1762874200765,0.66339185,104290.0,104280.0,0.05768]
[1762874200960,0.38107803,104290.0,104280.0,0.05768]
[1762874201161,0.00219803,104290.0,104280.0,0.05768]
[1762874201371,0.28451185,104290.0,104280.0,0.05768]
[1762874201571,0.28551185,104290.0,104280.0,0.05768]
[1762874201982,0.001,104290.0,104280.0,0.1535902]
[1762874202274,0.002,104290.0,104280.0,0.1535902]
[1762874202658,0.002,104290.0,104280.0,0.05768]
[1762874203178,0.00419803,104290.0,104280.0,0.05768]
[1762874203378,0.28651185,104290.0,104280.0,0.05768]
[1762874204067,0.56507185,104290.0,104280.0,0.01324]
[1762874204273,0.57007185,104290.0,104280.0,0.01724]
[1762874204769,0.57007185,104290.0,104280.0,0.03881]
[1762874205073,0.57007185,104290.0,104280.0,0.06168]
[1762874205571,0.56407185,104290.0,104280.0,0.06168]
[1762874205771,0.00219803,104290.0,104280.0,0.06168]
[1762874206168,0.28231382,104300.0,104290.0,0.04444]
[1762874206361,0.57903185,104300.0,104290.0,0.140341]
[1762874206560,0.29671803,104300.0,104290.0,0.140341]
[1762874206863,0.00219803,104300.0,104290.0,0.04444]
[1762874207064,0.28451185,104300.0,104290.0,0.04444]
[1762874207466,0.28451185,104300.0,104290.0,0.140341]
[1762874208375,0.28451185,104300.0,104290.0,0.04444]
[1762874209273,0.28451185,104300.0,104280.0,0.01324]
[1762874209482,0.28231382,104290.0,104280.0,0.05768]
[1762874209681,0.28451185,104290.0,104280.0,0.05768]
[1762874210571,0.66315185,104290.0,104280.0,0.01324]
[1762874210778,0.66315185,104290.0,104280.0,0.01288]
[1762874211284,0.66415185,104290.0,104280.0,0.01588]
[1762874211479,0.68633799,104290.0,104280.0,0.01788]
[1762874212074,0.8294016,104290.0,104270.0,0.00014384]
[1762874212277,0.28231382,104280.0,104270.0,0.02120384]
[1762874212472,0.28451185,104280.0,104270.0,0.02120384]
[1762874213284,0.30671702,104280.0,104270.0,0.00014384]
[1762874213781,0.45124513,104280.0,104270.0,0.00014384]
[1762874213974,0.85124513,104280.0,104270.0,0.00014384]
[1762874214375,0.85124513,104280.0,104260.0,0.01324]
[1762874214581,0.66087382,104270.0,104240.0,0.01324]
[1762874214782,0.28451185,104250.0,104240.0,0.05641]
[1762874214983,0.66307185,104250.0,104230.0,8.649e-05]
[1762874215186,0.28231382,104240.0,104230.0,0.04325649]
[1762874215392,0.28451185,104240.0,104230.0,0.04325649]
[1762874216683,0.28451185,104240.0,104230.0,0.02114649]
[1762874216882,0.28451185,104240.0,104230.0,8.649e-05]
[1762874217083,0.30672691,104240.0,104230.0,8.649e-05]
[1762874217481,0.30672691,104240.0,104230.0,0.00308649]
[1762874217682,0.45017866,104240.0,104230.0,0.00308649]
[1762874218880,0.82873866,104240.0,104230.0,0.00308649]
[1762874219084,0.82873866,104240.0,104230.0,0.02714649]
[1762874219384,0.45017866,104240.0,104230.0,0.04922649]
[1762874219586,0.02441309,104240.0,104230.0,0.14518279]
[1762874219785,0.37739803,104240.0,104230.0,0.04922649]
[1762874219986,0.65971185,104240.0,104230.0,0.04622649]
[1762874220182,0.68296869,104240.0,104230.0,0.05022649]
[1762874220684,0.66071185,104240.0,104230.0,0.14618279]
[1762874221085,0.66187382,104240.0,104230.0,0.14618279]
[1762874221378,0.001,104240.0,104230.0,0.14618279]
[1762874221783,0.00014384,104250.0,104240.0,0.1532471]
[1762874222286,0.28231382,104270.0,104260.0,0.0573]
[1762874222482,0.02227635,104270.0,104260.0,0.0573]
[1762874222686,0.02227635,104270.0,104260.0,0.1532287]
[1762874223291,0.28231382,104280.0,104270.0,0.0434]
[1762874223488,0.02228388,104280.0,104270.0,0.0434]
[1762874223690,0.30679573,104280.0,104270.0,0.02132]
[1762874223892,0.30679573,104280.0,104260.0,0.0139]
[1762874224093,0.28231382,104270.0,104260.0,0.0573]
[1762874224282,0.28231382,104270.0,104260.0,0.0139]
[1762874224283,0.68531573,104270.0,104260.0,0.0139]
[1762874224489,0.82908985,104270.0,104250.0,0.00014384]
[1762874224789,0.28231382,104260.0,104250.0,0.00014384]
[1762874224991,0.30679573,104260.0,104250.0,0.00014384]
[1762874225190,0.450371,104260.0,104250.0,0.00014384]
[1762874226396,0.450371,104260.0,104250.0,0.00114384]
[1762874226589,0.450371,104260.0,104240.0,0.0139]
[1762874226590,0.90169384,104260.0,104230.0,8.649e-05]
[1762874226790,0.28231382,104240.0,104230.0,8.649e-05]
[1762874226991,0.40847477,104240.0,104230.0,8.649e-05]
[1762874227192,0.02448191,104240.0,104230.0,0.04348649]
[1762874227392,0.59495834,104240.0,104230.0,0.04348649]
[1762874228794,0.59495834,104240.0,104230.0,0.04548649]
[1762874229693,0.59595834,104240.0,104230.0,0.04948649]
[1762874230491,0.78795477,104240.0,104230.0,0.00608649]
[1762874230690,0.59595834,104240.0,104230.0,0.00608649]
[1762874231095,0.78795477,104240.0,104230.0,0.00608649]
[1762874231486,0.9322152,104240.0,104230.0,0.00608649]
[1762874231894,1.38353804,104240.0,104220.0,0.00014384]
[1762874232099,0.19199643,104230.0,104200.0,0.0139]
[1762874232399,0.19419446,104210.0,104200.0,0.0139]
[1762874232600,0.21647834,104210.0,104200.0,0.0139]
[1762874233099,0.21656483,104210.0,104200.0,0.0139]
[1762874233291,0.21656483,104210.0,104190.0,0.00014384]
[1762874233599,0.76247286,104200.0,104190.0,0.00014384]
[1762874233794,0.78695477,104200.0,104190.0,0.00014384]
[1762874234396,0.19419446,104200.0,104190.0,0.13953694]
[1762874234590,0.32387803,104200.0,104190.0,0.13953694]
[1762874235197,0.51587446,104200.0,104190.0,0.13953694]
[1762874235602,0.32387803,104200.0,104190.0,0.13953694]
[1762874235795,0.00219803,104200.0,104190.0,0.13953694]
[1762874236001,0.00319803,104200.0,104190.0,0.14153694]
[1762874236197,0.19519446,104200.0,104190.0,0.04554384]
[1762874236398,0.19519446,104200.0,104190.0,0.14153694]
[1762874238003,0.19519446,104200.0,104190.0,0.04554384]
[1762874238892,0.001,104200.0,104190.0,0.38145694]
[1762874239093,0.001,104200.0,104190.0,0.33353337]
[1762874239297,8.649e-05,104210.0,104200.0,0.1532839]
[1762874239490,0.00014384,104220.0,104210.0,0.1393747]
[1762874239695,0.19214027,104220.0,104210.0,0.1393747]
[1762874239989,0.00234187,104220.0,104210.0,0.1393747]
[1762874240200,0.1943383,104220.0,104210.0,0.0434]
[1762874240394,0.1943383,104220.0,104210.0,0.1393747]
[1762874240594,0.1953383,104220.0,104210.0,0.1393747]
[1762874240790,0.1953383,104220.0,104210.0,0.0434]
[1762874241196,0.1953383,104220.0,104210.0,0.1393747]
[1762874241397,0.00334187,104220.0,104210.0,0.1393747]
[1762874241696,0.00114384,104220.0,104210.0,0.57125113]
[1762874241898,0.56499643,104240.0,104230.0,0.1420563]
[1762874242100,0.58950715,104240.0,104230.0,0.1420563]
[1762874242707,0.21650715,104240.0,104230.0,0.1420563]
[1762874243999,0.02451072,104240.0,104230.0,0.1420563]
[1762874244203,0.02451072,104240.0,104230.0,0.0461]
[1762874244599,0.21650715,104240.0,104230.0,0.0461]
[1762874244801,0.21650715,104240.0,104230.0,0.0481]
[1762874245508,0.40850358,104240.0,104230.0,0.02531]
[1762874245809,0.21650715,104240.0,104230.0,0.02531]
[1762874246107,0.40850358,104240.0,104230.0,0.02531]
[1762874246303,0.21651786,104240.0,104230.0,0.02531]
[1762874247105,0.40851429,104240.0,104230.0,0.002]
[1762874247310,0.21651786,104240.0,104230.0,0.02531]
[1762874247507,0.21651786,104240.0,104230.0,0.0481]
[1762874247900,0.21651786,104240.0,104230.0,0.02531]
[1762874248210,0.21651786,104240.0,104230.0,0.1440563]
[1762874248406,0.00219803,104240.0,104230.0,0.1440563]
[1762874248597,0.19419446,104240.0,104230.0,0.1440563]
[1762874249003,0.00014384,104250.0,104240.0,0.1551071]
[1762874249201,0.59352577,104250.0,104240.0,0.15730513]
[1762874249610,0.40152934,104250.0,104240.0,0.06135803]
[1762874249811,0.02247667,104250.0,104240.0,0.15730513]
[1762874250013,0.28227643,104270.0,104260.0,0.05916]
[1762874250311,0.2830091,104270.0,104260.0,0.06135803]
[1762874251102,0.30734217,104270.0,104260.0,0.06135803]
[1762874251709,0.30934217,104270.0,104260.0,0.06135803]
[1762874251908,0.11734574,104270.0,104260.0,0.06135803]
[1762874252207,0.30934217,104270.0,104260.0,0.06135803]
[1762874254808,0.26834217,104270.0,104260.0,0.06135803]
[1762874255209,0.2460091,104270.0,104260.0,0.01525803]
[1762874255416,0.26835861,104270.0,104260.0,0.01525803]
[1762874255623,0.07636218,104270.0,104260.0,0.06135803]
[1762874255909,0.26835861,104270.0,104260.0,0.06135803]
[1762874256111,0.26835861,104270.0,104260.0,0.01525803]
[1762874256315,0.26835861,104270.0,104260.0,0.00219803]
[1762874258813,0.41216047,104270.0,104250.0,0.00014384]
[1762874259118,0.19199643,104260.0,104250.0,0.04844187]
[1762874259302,0.21507861,104260.0,104250.0,0.04844187]
[1762874259506,0.73700047,104260.0,104250.0,0.04844187]
[1762874260412,0.5718491,104260.0,104250.0,0.04844187]
[1762874260610,0.5718491,104260.0,104250.0,0.14437977]
[1762874261218,0.5728491,104260.0,104250.0,0.14437977]
[1762874261608,0.5728491,104260.0,104250.0,0.04844187]
[1762874261808,0.5728491,104260.0,104250.0,0.14437977]
[1762874262012,0.5728491,104260.0,104250.0,0.04844187]
[1762874262214,0.5728491,104260.0,104250.0,0.14437977]
[1762874262408,0.00273267,104260.0,104250.0,0.14437977]
[1762874263020,0.1947291,104260.0,104250.0,0.04844187]
[1762874263411,0.21705941,104260.0,104250.0,0.04844187]
[1762874266820,0.21705941,104260.0,104250.0,0.00234187]
[1762874267817,0.21705941,104260.0,104250.0,0.04844187]
[1762874268026,0.21705941,104260.0,104250.0,0.00014384]
[1762874268315,0.36076495,104260.0,104250.0,0.00014384]
[1762874268515,0.36076495,104260.0,104250.0,0.00234187]
[1762874270123,0.36082312,104260.0,104250.0,0.00234187]
[1762874271929,0.59503758,104260.0,104250.0,0.04702187]
[1762874272126,0.18255532,104260.0,104250.0,0.14295977]
[1762874272326,0.56047532,104260.0,104250.0,0.04702187]
[1762874272929,0.56047532,104260.0,104250.0,0.14295977]
[1762874274019,0.56047532,104260.0,104250.0,0.04702187]
[1762874274627,0.56047532,104260.0,104250.0,0.14295977]
[1762874275826,0.18255532,104260.0,104250.0,0.14295977]
[1762874277122,0.56983643,104270.0,104260.0,0.05622]
[1762874277321,0.19199643,104270.0,104260.0,0.15434673]
[1762874277622,0.05132284,104300.0,104290.0,0.04308]
[1762874277822,0.56979643,104300.0,104290.0,0.04527803]
[1762874278023,0.71341155,104300.0,104290.0,0.04527803]
[1762874278232,0.56979643,104300.0,104290.0,0.04527803]
[1762874279430,0.19299643,104300.0,104290.0,0.04527803]
[1762874279634,0.57075643,104300.0,104290.0,0.04527803]
[1762874280834,0.19299643,104300.0,104290.0,0.04527803]
[1762874281035,0.57175643,104300.0,104290.0,0.04527803]
[1762874281337,0.002,104300.0,104290.0,0.14117913]
[1762874281529,0.002,104300.0,104290.0,0.04527803]
[1762874281834,0.19399643,104300.0,104290.0,0.04527803]
[1762874282631,0.57167643,104300.0,104290.0,0.04527803]
[1762874283035,0.002,104300.0,104290.0,0.33317556]
[1762874283238,0.94056,104350.0,104340.0,0.01263]
[1762874283441,1.31824,104350.0,104340.0,0.01482803]
[1762874283637,1.46132424,104350.0,104330.0,0.00014384]
[1762874284133,1.48356304,104350.0,104330.0,0.00234187]
[1762874284340,0.38399286,104340.0,104320.0,0.01263]
[1762874284535,0.19199643,104330.0,104320.0,0.05790803]
[1762874284743,0.59183523,104330.0,104320.0,0.05790803]
[1762874284936,0.21423523,104330.0,104320.0,0.05790803]
[1762874285138,0.59183523,104330.0,104320.0,0.05790803]
[1762874285334,0.19199643,104330.0,104320.0,0.15378153]
[1762874285541,0.19214027,104340.0,104330.0,0.04308]
[1762874285843,0.58426285,104340.0,104330.0,0.04527803]
[1762874286234,0.56974027,104340.0,104330.0,0.04627803]
[1762874286842,0.57074027,104340.0,104330.0,0.04627803]
[1762874287139,0.57070027,104340.0,104330.0,0.04627803]
[1762874287348,0.57170027,104340.0,104330.0,0.04527803]
[1762874287648,0.57166027,104340.0,104330.0,0.04527803]
[1762874288038,0.59383153,104340.0,104330.0,0.00219803]
[1762874288950,0.68289959,104340.0,104330.0,0.00219803]
[1762874289143,1.2260865,104340.0,104310.0,0.00014384]
[1762874289449,0.28106449,104320.0,104310.0,0.00234187]
[1762874289642,0.68067575,104320.0,104310.0,0.04542187]
[1762874289844,0.65850449,104320.0,104310.0,0.04542187]
[1762874290143,0.65850449,104320.0,104310.0,0.00234187]
[1762874290349,0.68066111,104320.0,104310.0,0.02431187]
[1762874290544,0.00214384,104340.0,104310.0,0.04542187]
[1762874290749,0.22584,104330.0,104320.0,0.01263]
[1762874291045,0.39959746,104330.0,104320.0,0.05790803]
[1762874291450,0.37744,104330.0,104320.0,0.05790803]
[1762874291939,0.65850449,104330.0,104320.0,0.05790803]
[1762874292249,0.00114384,104340.0,104330.0,0.04308]
[1762874292451,0.65864833,104340.0,104330.0,0.04527803]
[1762874293342,0.65964833,104340.0,104330.0,0.04527803]
[1762874293846,0.68178338,104340.0,104330.0,0.00219803]
[1762874294547,0.68178338,104340.0,104330.0,0.04527803]
[1762874294851,0.68278338,104340.0,104330.0,0.04527803]
[1762874295548,0.68278338,104340.0,104330.0,0.00219803]
[1762874295942,0.82712797,104340.0,104330.0,0.00219803]
[1762874296146,0.82712797,104340.0,104320.0,0.01263]
[1762874296343,0.28106449,104330.0,104320.0,0.00219803]
[1762874296651,0.44754413,104330.0,104310.0,0.00014384]
[1762874296846,0.65838449,104320.0,104310.0,0.00234187]
[1762874297050,0.68051954,104320.0,104310.0,0.00234187]
[1762874297346,0.44708968,104320.0,104310.0,0.00234187]
[1762874297556,0.68047954,104320.0,104310.0,0.00234187]
[1762874298547,0.30319954,104320.0,104310.0,0.00234187]
[1762874298854,0.30319954,104320.0,104310.0,0.04542187]
[1762874299152,0.28106449,104330.0,104320.0,0.05571]
[1762874299343,0.30322921,104330.0,104320.0,0.05790803]
[1762874299546,0.68046921,104330.0,104320.0,0.05790803]
[1762874300052,0.30322921,104330.0,104320.0,0.05790803]
[1762874300255,0.68046921,104330.0,104320.0,0.05790803]
[1762874300640,0.02216472,104330.0,104320.0,0.15378153]
[1762874300845,0.37724,104330.0,104320.0,0.05790803]
[1762874301052,0.00114384,104340.0,104330.0,0.0443]
[1762874301251,0.00114384,104340.0,104330.0,0.14236233]
[1762874301455,0.00114384,104340.0,104330.0,0.04649803]
[1762874301754,0.30339312,104340.0,104330.0,0.04649803]
[1762874301948,0.68063312,104340.0,104330.0,0.00219803]
[1762874302549,0.68263312,104340.0,104330.0,0.00219803]
[1762874302941,0.82731357,104340.0,104320.0,0.01263]
[1762874303145,0.28106449,104330.0,104320.0,0.01482803]
[1762874303341,0.30324928,104330.0,104320.0,0.01482803]
[1762874303551,0.68044928,104330.0,104320.0,0.05901803]
[1762874303755,0.68040928,104330.0,104320.0,0.05901803]
[1762874305456,0.68040928,104330.0,104320.0,0.03668803]
[1762874305847,0.68040928,104330.0,104320.0,0.05901803]
[1762874306547,0.30324928,104330.0,104320.0,0.05901803]
[1762874306754,0.68036928,104330.0,104320.0,0.05901803]
[1762874307451,0.30324928,104330.0,104320.0,0.05901803]
[1762874307651,0.68036928,104330.0,104320.0,0.05901803]
[1762874309051,0.68036928,104330.0,104320.0,0.03668803]
[1762874309761,0.30324928,104330.0,104320.0,0.03668803]
[1762874309956,0.68032928,104330.0,104320.0,0.05901803]
[1762874311556,0.30324928,104330.0,104320.0,0.05901803]
[1762874311757,0.39922479,104330.0,104320.0,0.15489153]
[1762874312159,0.02218479,104330.0,104320.0,0.05901803]
[1762874312357,0.05146668,104340.0,104330.0,0.04419]
[1762874312658,0.5722445,104340.0,104330.0,0.04638803]
[1762874312859,0.59455883,104340.0,104330.0,0.04638803]
[1762874313358,0.59455883,104340.0,104330.0,0.00219803]
[1762874313665,0.87662332,104340.0,104330.0,0.00219803]
[1762874313953,0.87662332,104340.0,104330.0,0.04638803]
[1762874314361,0.87662332,104340.0,104330.0,0.00219803]
[1762874314961,0.87762332,104340.0,104330.0,0.00219803]
[1762874315456,0.87762332,104340.0,104320.0,0.01263]
[1762874315661,0.28106449,104330.0,104320.0,0.01499803]
[1762874315854,0.30337882,104330.0,104320.0,0.01499803]
[1762874316058,0.49889286,104330.0,104320.0,0.01499803]
[1762874316263,0.49889286,104330.0,104310.0,0.00014384]
[1762874316456,0.70934733,104320.0,104310.0,0.04653187]
[1762874316654,0.73166166,104320.0,104310.0,0.02420187]
[1762874316860,0.73166166,104320.0,104310.0,0.04653187]
[1762874317464,0.87484016,104320.0,104310.0,0.00014384]
[1762874317756,0.87484016,104320.0,104310.0,0.00234187]
[1762874318149,0.49788016,104320.0,104310.0,0.04653187]
[1762874318356,0.87484016,104320.0,104310.0,0.04653187]
[1762874318863,0.87484016,104320.0,104310.0,0.00234187]
[1762874319364,0.87484016,104320.0,104310.0,0.00334187]
[1762874319664,0.87484016,104320.0,104310.0,0.00434187]
[1762874320666,0.87484016,104320.0,104310.0,0.04853187]
[1762874320862,0.87484016,104320.0,104310.0,0.00434187]
[1762874321063,0.87484016,104320.0,104310.0,0.00214384]
[1762874322866,0.87484016,104320.0,104310.0,0.00434187]
[1762874323464,0.49788016,104320.0,104310.0,0.04853187]
[1762874323662,0.87476016,104320.0,104310.0,0.04853187]
[1762874323859,0.87476016,104320.0,104310.0,0.00434187]
[1762874324059,0.87476016,104320.0,104310.0,0.00214384]
[1762874324256,0.89788016,104320.0,104280.0,0.01263]
[1762874324461,0.28106449,104290.0,104280.0,0.05901803]
[1762874324768,0.68025882,104290.0,104280.0,0.05901803]
[1762874325169,0.68025882,104290.0,104280.0,0.15492833]
[1762874325370,0.39919433,104290.0,104280.0,0.15492833]
[1762874325664,0.02231433,104290.0,104280.0,0.15492833]
[1762874325868,0.02231433,104290.0,104280.0,0.15592833]
[1762874326065,0.30337882,104290.0,104280.0,0.15792833]
[1762874326267,0.02231433,104290.0,104280.0,0.15792833]
[1762874326473,0.62892833,104300.0,104290.0,0.1400911]
[1762874326662,0.68029143,104300.0,104290.0,0.04638803]
[1762874327065,0.68029143,104300.0,104290.0,0.14228913]
[1762874327265,0.68029143,104300.0,104290.0,0.04638803]
[1762874327669,0.68029143,104300.0,104290.0,0.00219803]
[1762874328267,0.68029143,104300.0,104290.0,0.02405803]
[1762874328662,0.68029143,104300.0,104290.0,0.04638803]
[1762874328861,0.82452646,104300.0,104290.0,0.001]
[1762874329176,1.2758493,104300.0,104280.0,0.01263]
[1762874329366,0.28106449,104290.0,104280.0,0.01263]
[1762874329561,0.30330759,104290.0,104280.0,0.01482803]
[1762874330565,0.44710703,104290.0,104270.0,0.00014384]
[1762874330872,0.65790449,104280.0,104270.0,0.00014384]
[1762874331060,0.68014759,104280.0,104270.0,0.00234187]
[1762874331858,0.68014759,104280.0,104270.0,0.02540187]
[1762874332062,0.68014759,104280.0,104270.0,0.04736187]
[1762874332263,0.68014759,104280.0,104270.0,0.00014384]
[1762874332474,0.68014759,104280.0,104270.0,0.00234187]
[1762874332774,0.68014759,104280.0,104270.0,0.02540187]
[1762874333379,0.68014759,104280.0,104270.0,0.02640187]
[1762874333569,0.30330759,104280.0,104270.0,0.02640187]
[1762874333770,0.68010759,104280.0,104270.0,0.02640187]
[1762874333978,0.68010759,104280.0,104270.0,0.02740187]
[1762874334179,0.68010759,104280.0,104270.0,0.00434187]
[1762874338169,0.82460352,104280.0,104270.0,0.00214384]
[1762874338671,0.82460352,104280.0,104270.0,0.04852187]
[1762874338672,0.44780352,104280.0,104270.0,0.04852187]
[1762874338978,0.82456352,104280.0,104270.0,0.04852187]
[1762874339171,0.82456352,104280.0,104270.0,0.00434187]
[1762874341674,0.82456352,104280.0,104270.0,0.00214384]
[1762874341871,0.82456352,104280.0,104240.0,0.0128]
[1762874342177,0.28106449,104250.0,104240.0,0.05937803]
[1762874342478,0.67993765,104250.0,104240.0,0.01499803]
[1762874342777,0.65778449,104250.0,104240.0,0.05937803]
[1762874343179,0.65778449,104250.0,104240.0,0.06037803]
[1762874343380,0.6801535,104250.0,104240.0,0.06037803]
[1762874343569,0.28120833,104260.0,104250.0,0.04438]
[1762874343879,0.80162801,104260.0,104250.0,0.04657803]
[1762874344383,0.8240074,104260.0,104250.0,0.04657803]
[1762874344973,0.8250074,104260.0,104250.0,0.02545803]
[1762874345373,0.8250074,104260.0,104250.0,0.00219803]
[1762874345770,0.8260074,104260.0,104250.0,0.00219803]
[1762874346278,0.8260074,104260.0,104240.0,0.0128]
[1762874346581,0.28106449,104250.0,104240.0,0.05937803]
[1762874346876,0.30344388,104250.0,104240.0,0.05937803]
[1762874350171,0.30344388,104250.0,104240.0,0.06037803]
[1762874350479,0.30346091,104250.0,104240.0,0.01599803]
[1762874350881,0.40638012,104250.0,104240.0,0.01599803]
[1762874351274,0.21438827,104250.0,104240.0,0.06037803]
[1762874352485,0.95087287,104250.0,104230.0,0.00014384]
[1762874352682,0.7605837,104240.0,104230.0,0.02560187]
[1762874352873,0.78298012,104240.0,104230.0,0.04672187]
[1762874353074,0.73516946,104240.0,104230.0,0.04672187]
[1762874353273,0.92716131,104240.0,104230.0,0.04672187]
[1762874353479,0.92716131,104240.0,104230.0,0.00234187]
[1762874353980,0.92716131,104240.0,104230.0,0.00014384]
[1762874354284,0.97848415,104240.0,104220.0,0.01286847]
[1762874354484,0.19199185,104230.0,104220.0,0.0150665]
[1762874354675,0.21438827,104230.0,104220.0,0.0150665]
[1762874354882,0.35898884,104230.0,104220.0,0.0150665]
[1762874355480,0.35898884,104230.0,104220.0,0.01286847]
[1762874355986,0.35898884,104230.0,104210.0,0.00014384]
[1762874356187,0.56855185,104220.0,104210.0,0.00014384]
[1762874356488,0.73505253,104220.0,104200.0,0.01356]
[1762874356681,0.19199185,104210.0,104200.0,0.01575803]
[1762874356878,0.40644859,104210.0,104200.0,0.01356]
[1762874357080,0.55132642,104210.0,104180.0,0.01336]
[1762874357384,0.19199185,104190.0,104180.0,0.05993803]
[1762874357581,0.59101674,104190.0,104180.0,0.06008187]
[1762874358888,0.59701674,104190.0,104180.0,0.06008187]
[1762874359182,0.59698474,104190.0,104180.0,0.06008187]
[1762874359683,0.60398474,104190.0,104180.0,0.01450384]
[1762874359991,0.60398474,104190.0,104180.0,0.01670187]
[1762874360285,0.41199289,104190.0,104180.0,0.03851187]
[1762874360492,0.60398474,104190.0,104180.0,0.01670187]
[1762874360990,0.74737659,104190.0,104180.0,0.00114384]
[1762874361690,0.74137659,104190.0,104180.0,0.00114384]
[1762874361882,0.73437659,104190.0,104180.0,0.01340384]
[1762874362074,0.73537659,104190.0,104180.0,0.01540384]
[1762874362280,0.73537659,104190.0,104180.0,0.01760187]
[1762874364689,0.73537659,104190.0,104180.0,0.00214384]
[1762874364884,0.73537659,104190.0,104180.0,0.01540384]
[1762874365085,0.73537659,104190.0,104180.0,0.01760187]
[1762874365586,0.73537659,104190.0,104180.0,0.00214384]
[1762874365791,0.73537659,104190.0,104160.0,0.01336]
[1762874365992,0.19199185,104170.0,104160.0,0.06065803]
[1762874366188,0.56851185,104170.0,104160.0,0.06065803]
[1762874366490,0.56858032,104170.0,104160.0,0.06065803]
[1762874367184,0.19206032,104170.0,104160.0,0.06165803]
[1762874367385,0.56858032,104170.0,104160.0,0.06165803]
[1762874368592,0.56858032,104170.0,104160.0,0.06065803]
[1762874368791,0.56958032,104170.0,104160.0,0.06065803]
[1762874369492,0.59188711,104170.0,104160.0,0.01555803]
[1762874369685,0.92716952,104170.0,104160.0,0.01555803]
[1762874369992,0.92716952,104170.0,104150.0,0.00033591]
[1762874370189,0.38405217,104160.0,104150.0,0.00033591]
[1762874370388,0.40635896,104160.0,104150.0,0.00033591]
[1762874370598,0.54969638,104160.0,104140.0,0.01348113]
[1762874370896,0.56854032,104150.0,104140.0,0.01348113]
[1762874371193,0.59084711,104150.0,104140.0,0.01348113]
[1762874371589,0.73475583,104150.0,104120.0,0.01336]
[1762874371793,0.19199185,104130.0,104120.0,0.06065803]
[1762874371989,0.56847185,104130.0,104120.0,0.06065803]
[1762874372195,0.66452025,104130.0,104120.0,0.03736803]
[1762874372391,0.19199185,104130.0,104120.0,0.06065803]
[1762874372593,0.56855585,104130.0,104120.0,0.06065803]
[1762874375194,0.19207585,104130.0,104120.0,0.06065803]
[1762874375396,0.56855585,104130.0,104120.0,0.06065803]